bitfinex/quotes_SOLUSD_20250602
["timestamp","ask_amount","ask_price","bid_price","bid_amount"]
[1748867660219,167.47510233,153.99,153.95,18.57510233]
[1748867660860,148.9,153.99,153.96,18.57510233]
[1748867661235,148.9,153.99,153.97,18.57510233]
[1748867663246,26.0,154.01,153.97,18.57510233]
[1748867663474,148.9,154.03,153.98,18.57510233]
[1748867663649,18.57510233,154.02,153.98,18.57510233]
[1748867664174,1.589,154.04,153.98,18.57510233]
[1748867664175,20.16410233,154.04,153.99,18.57510233]
[1748867665153,1.589,154.04,153.99,18.57510233]
[1748867665486,20.16410233,154.04,154.0,18.57510233]
[1748867667154,1.589,154.04,154.0,18.57510233]
[1748867667356,20.16410233,154.04,154.0,18.57510233]
[1748867667885,20.16410233,154.04,153.97,6.49458526]
[1748867668094,20.16410233,154.04,153.99,18.57510233]
[1748867669866,20.16410233,154.04,154.0,18.57510233]
[1748867670463,18.57510233,154.05,154.0,18.57510233]
[1748867670651,18.57510233,154.05,153.96,6.49519355]
[1748867670857,18.57510233,154.03,153.99,18.57510233]
[1748867671173,18.57510233,154.03,153.98,18.57510233]
[1748867671479,18.57510233,154.03,153.95,18.57510233]
[1748867671480,18.57510233,153.99,153.95,18.57510233]
[1748867671687,18.57510233,154.0,153.95,18.57510233]
[1748867672062,18.57510233,154.0,153.96,18.57510233]
[1748867672483,18.57510233,154.0,153.94,18.64964886]
[1748867672484,18.57510233,154.0,153.93,38.73682911]
[1748867672694,18.57510233,153.99,153.95,18.57510233]
[1748867673904,18.57510233,153.99,153.93,38.73682911]
[1748867674108,18.57510233,153.99,153.93,32.49642911]
[1748867674308,18.57510233,153.99,153.95,18.57510233]
[1748867677095,150.4356,154.03,153.96,18.57510233]
[1748867677096,18.57510233,154.0,153.96,18.57510233]
[1748867677276,18.57510233,153.99,153.95,18.57510233]
[1748867677980,18.57510233,154.0,153.95,18.57510233]
[1748867678296,18.57510233,154.01,153.96,18.57510233]
[1748867678499,148.9,154.02,153.97,18.57510233]
[1748867678676,18.57510233,154.01,153.97,18.57510233]
[1748867679499,148.9,154.02,153.98,18.57510233]
[1748867679685,167.47510233,154.02,153.98,18.57510233]
[1748867679886,148.9,154.02,153.98,18.57510233]
[1748867680980,20.11070233,154.03,153.98,18.57510233]
[1748867681386,1.5356,154.03,153.99,18.57510233]
[1748867681789,20.11070233,154.03,153.99,18.57510233]
[1748867682101,20.11070233,154.03,153.98,18.57510233]
[1748867682294,20.11070233,154.03,153.99,18.57510233]
[1748867683682,18.57510233,154.04,153.99,18.57510233]
[1748867685005,148.9,154.05,153.98,6.49426729]
[1748867685006,18.57510233,154.03,153.98,18.57510233]
[1748867685217,18.57510233,154.04,153.99,18.57510233]
[1748867685590,18.57510233,154.02,153.95,6.49561545]
[1748867685805,18.57510233,154.02,153.98,18.57510233]
[1748867685981,148.9,154.05,153.95,25.14526431]
[1748867686188,18.57510233,154.0,153.94,25.14551689]
[1748867686399,18.57510233,154.0,153.96,18.57510233]
[1748867686602,18.57510233,154.01,153.97,18.57510233]
[1748867688009,148.9,154.04,153.97,18.57510233]
[1748867688217,18.57510233,154.01,153.97,18.57510233]
[1748867688396,18.57510233,154.01,153.95,6.49542813]
[1748867688709,18.57510233,154.01,153.93,26.0]
[1748867688710,18.57510233,154.01,153.96,18.57510233]
[1748867688911,18.57510233,154.01,153.94,18.64964886]
[1748867688912,18.57510233,153.97,153.88,1.6225]
[1748867689092,18.57510233,153.93,153.89,18.57510233]
[1748867689689,18.57510233,153.94,153.9,18.57510233]
[1748867689892,26.0,153.97,153.91,18.57510233]
[1748867690215,18.57510233,153.94,153.89,18.64964886]
[1748867690420,18.57510233,153.94,153.9,18.57510233]
[1748867691114,18.57510233,153.94,153.89,18.64964886]
[1748867691115,18.57510233,153.97,153.92,18.57510233]
[1748867691285,18.57510233,153.96,153.91,18.57510233]
[1748867696813,26.0,153.99,153.9,6.49764717]
[1748867697111,18.57510233,153.95,153.91,18.57510233]
[1748867697820,18.57510233,153.95,153.89,25.14761455]
[1748867697994,18.57510233,153.95,153.91,18.57510233]
[1748867699705,18.57510233,153.94,153.91,26.0]
[1748867699898,18.57510233,153.94,153.92,26.0]
[1748867700292,18.57510233,153.94,153.9,44.57510233]
[1748867700526,18.57510233,153.96,153.91,18.57510233]
[1748867700826,18.57510233,153.96,153.92,44.57510233]
[1748867701520,18.57510233,153.97,153.92,18.57510233]
[1748867702004,18.57510233,153.97,153.92,25.07197589]
[1748867702204,18.57510233,153.99,153.95,18.57510233]
[1748867702518,150.4528,154.0,153.93,26.0]
[1748867702519,20.12790233,154.0,153.96,18.57510233]
[1748867703317,18.57510233,154.0,153.96,18.57510233]
[1748867704213,18.57510233,154.0,153.94,6.49603124]
[1748867704527,18.57510233,153.99,153.95,18.57510233]
[1748867704733,18.57510233,153.98,153.94,18.57510233]
[1748867706797,18.57510233,153.99,153.94,18.57510233]
[1748867708504,18.57510233,153.98,153.94,18.57510233]
[1748867708701,18.57510233,153.97,153.93,18.57510233]
[1748867709028,18.57510233,153.96,153.91,18.64964886]
[1748867709209,18.57510233,153.97,153.92,18.57510233]
[1748867709804,1.5708,153.98,153.88,26.0]
[1748867709805,18.57510233,153.94,153.88,26.0]
[1748867710151,18.57510233,153.96,153.92,18.57510233]
[1748867710360,1.5708,153.98,153.89,18.64964886]
[1748867710361,18.57510233,153.97,153.93,18.57510233]
[1748867710948,1.5708,153.98,153.94,18.57510233]
[1748867711260,18.57510233,153.97,153.92,18.57510233]
[1748867711731,18.57510233,153.95,153.91,18.57510233]
[1748867712328,18.57510233,153.96,153.92,18.57510233]
[1748867713348,18.57510233,153.96,153.89,25.14755505]
[1748867713540,18.57510233,153.95,153.91,18.57510233]
[1748867713964,18.57510233,153.93,153.89,18.57510233]
[1748867714658,26.0,153.97,153.86,18.64964886]
[1748867714659,18.57510233,153.91,153.86,18.64964886]
[1748867715160,18.57510233,153.9,153.84,51.1496382]
[1748867715334,18.57510233,153.9,153.86,18.57510233]
[1748867717734,18.57510233,153.9,153.84,26.0]
[1748867717938,1.6272,153.92,153.87,18.57510233]
[1748867718136,18.57510233,153.91,153.87,18.57510233]
[1748867719159,1.6272,153.92,153.88,18.57510233]
[1748867719953,20.20230233,153.92,153.88,18.57510233]
[1748867720161,20.20230233,153.92,153.87,18.57510233]
[1748867720751,18.57510233,153.9,153.86,18.57510233]
[1748867722655,18.57510233,153.89,153.85,18.57510233]
[1748867723942,18.57510233,153.87,153.82,5.35009785]
[1748867724154,18.57510233,153.86,153.82,23.92520018]
[1748867725135,18.57510233,153.86,153.82,5.35009785]
[1748867725338,18.57510233,153.84,153.82,5.35009785]
[1748867725561,18.57510233,153.85,153.82,5.35009785]
[1748867725884,18.57510233,153.86,153.82,5.35009785]
[1748867726655,18.57510233,153.85,153.82,5.35009785]
[1748867730661,148.9,153.87,153.84,18.57510233]
[1748867730971,18.57510233,153.89,153.85,18.57510233]
[1748867731139,18.57510233,153.89,153.84,18.57510233]
[1748867731549,18.57510233,153.89,153.85,18.57510233]
[1748867732156,18.57510233,153.88,153.84,18.57510233]
[1748867732754,18.57510233,153.87,153.83,18.57510233]
[1748867733071,18.57510233,153.87,153.82,23.92520018]
[1748867733450,18.57510233,153.86,153.82,23.92520018]
[1748867733660,18.57510233,153.86,153.82,5.35009785]
[1748867734350,18.57510233,153.86,153.82,23.92520018]
[1748867734568,148.9,153.89,153.82,23.92520018]
[1748867734569,18.57510233,153.87,153.82,23.92520018]
[1748867735055,18.57510233,153.87,153.83,18.57510233]
[1748867737266,18.57510233,153.87,153.82,23.92520018]
[1748867740872,18.57510233,153.86,153.82,23.92520018]
[1748867741952,26.0,153.88,153.82,23.92520018]
[1748867742153,18.57510233,153.87,153.82,23.92520018]
[1748867742372,18.57510233,153.87,153.83,18.57510233]
[1748867742889,12.77486943,153.9,153.86,18.57510233]
[1748867742890,11.18296943,153.9,153.86,18.57510233]
[1748867743171,167.47510233,153.94,153.89,18.57510233]
[1748867743356,148.9,153.94,153.9,18.57510233]
[1748867743551,174.9,153.94,153.9,18.57510233]
[1748867743752,148.9,153.94,153.9,18.57510233]
[1748867744867,167.47510233,153.94,153.9,18.57510233]
[1748867749574,167.47510233,153.94,153.89,18.57510233]
[1748867750162,148.9,153.94,153.9,18.57510233]
[1748867750475,18.57510233,153.97,153.93,18.57510233]
[1748867751896,29.89339506,153.98,153.94,18.57510233]
[1748867754088,18.57510233,153.97,153.93,18.57510233]
[1748867754395,11.31829273,153.98,153.95,18.57510233]
[1748867754681,29.89339506,153.98,153.94,18.57510233]
[1748867755780,148.9,153.99,153.96,18.57510233]
[1748867760680,18.57510233,153.97,153.91,26.0]
[1748867760992,18.57510233,153.97,153.93,18.57510233]
[1748867761695,18.57510233,153.96,153.92,18.57510233]
[1748867761877,18.57510233,153.94,153.88,6.1851]
[1748867762069,1.6202,153.97,153.87,25.14850922]
[1748867762070,18.57510233,153.92,153.87,18.57510233]
[1748867762275,26.0,153.95,153.85,18.57510233]
[1748867762276,18.57510233,153.89,153.85,18.57510233]
[1748867762473,18.57510233,153.9,153.86,18.57510233]
[1748867762783,18.57510233,153.9,153.82,21.60184456]
[1748867762784,18.57510233,153.89,153.85,18.57510233]
[1748867763179,18.57510233,153.89,153.84,18.57510233]
[1748867765893,18.57510233,153.88,153.84,18.57510233]
[1748867767296,18.57510233,153.88,153.83,6.50068257]
[1748867767475,18.57510233,153.88,153.83,18.57510233]
[1748867767672,18.57510233,153.87,153.82,23.92520018]
[1748867767973,26.0,153.89,153.83,18.57510233]
[1748867768283,18.57510233,153.89,153.84,18.57510233]
[1748867768474,18.57510233,153.88,153.84,18.57510233]
[1748867769088,18.57510233,153.87,153.83,18.57510233]
[1748867769795,18.57510233,153.86,153.82,23.92520018]
[1748867771289,18.57510233,153.87,153.83,18.57510233]
[1748867771490,18.57510233,153.88,153.84,18.57510233]
[1748867776216,18.57510233,153.9,153.85,18.57510233]
[1748867776381,18.57510233,153.9,153.86,18.57510233]
[1748867777282,193.47510233,153.91,153.86,25.07412668]
[1748867778015,174.9,153.91,153.87,18.57510233]
[1748867778186,193.47510233,153.91,153.87,18.57510233]
[1748867778691,44.57510233,153.91,153.87,18.57510233]
[1748867778898,44.57510233,153.91,153.83,25.15033143]
[1748867778899,18.57510233,153.9,153.83,25.15033143]
[1748867779108,18.57510233,153.88,153.84,18.57510233]
[1748867780012,18.57510233,153.89,153.85,26.0]
[1748867780904,18.57510233,153.88,153.85,26.0]
[1748867784087,18.57510233,153.87,153.86,26.0]
[1748867784507,18.57510233,153.87,153.82,23.92520018]
[1748867784692,18.57510233,153.87,153.85,26.0]
[1748867785013,18.57510233,153.88,153.85,26.0]
[1748867787891,1.5188,153.89,153.83,44.57510233]
[1748867788097,18.57510233,153.87,153.83,44.57510233]
[1748867788935,18.57510233,153.88,153.84,18.57510233]
[1748867791297,18.57510233,153.89,153.85,18.57510233]
[1748867791903,18.57510233,153.88,153.84,18.57510233]
[1748867792113,18.57510233,153.87,153.83,44.57510233]
[1748867792617,18.57510233,153.88,153.84,18.57510233]
[1748867793208,18.57510233,153.89,153.85,18.57510233]
[1748867796512,18.57510233,153.88,153.84,37.22475119]
[1748867798709,18.57510233,153.89,153.84,37.22475119]
[1748867799201,18.57510233,153.88,153.84,37.22475119]
[1748867801825,18.57510233,153.88,153.84,43.72500588]
[1748867802333,18.57510233,153.89,153.84,43.72500588]
[1748867803030,18.57510233,153.88,153.84,43.72500588]
[1748867803228,18.57510233,153.88,153.84,37.22475119]
[1748867804221,18.57510233,153.87,153.83,37.22475119]
[1748867804996,18.57510233,153.87,153.83,18.57510233]
[1748867805206,18.57510233,153.84,153.82,5.35009785]
[1748867805509,18.57510233,153.83,153.82,5.35009785]
[1748867805726,18.57510233,153.83,153.75,25.07874953]
[1748867806030,18.57510233,153.79,153.75,25.07874953]
[1748867806203,18.57510233,153.8,153.76,18.57510233]
[1748867806622,18.57510233,153.8,153.76,37.22475119]
[1748867807419,18.57510233,153.8,153.76,43.7283684]
[1748867808005,18.57510233,153.81,153.77,18.57510233]
[1748867808322,18.57510233,153.82,153.78,25.0775695]
[1748867809529,18.57510233,153.83,153.79,18.57510233]
[1748867809905,18.57510233,153.82,153.78,18.57510233]
[1748867810819,18.57510233,153.82,153.78,25.07788164]
[1748867815614,27.5258,153.87,153.79,18.64964886]
[1748867815821,18.57510233,153.84,153.8,18.57510233]
[1748867816458,1.5071,153.91,153.83,18.57510233]
[1748867816622,18.57510233,153.9,153.86,18.57510233]
[1748867816824,18.57510233,153.89,153.84,18.57510233]
[1748867818721,18.57510233,153.88,153.84,18.57510233]
[1748867820841,18.57510233,153.88,153.8,27.6362]
[1748867821143,18.57510233,153.86,153.82,18.57510233]
[1748867821447,18.57510233,153.86,153.81,37.22475119]
[1748867822041,18.57510233,153.86,153.82,18.57510233]
[1748867824142,18.57510233,153.87,153.83,18.57510233]
[1748867825460,18.57510233,153.86,153.82,18.57510233]
[1748867827458,18.57510233,153.86,153.82,25.07595213]
[1748867827830,26.0,153.9,153.84,18.57510233]
[1748867828049,26.0,153.9,153.86,18.57510233]
[1748867828050,18.57510233,153.9,153.86,18.57510233]
[1748867829155,27.5071,153.91,153.84,6.49986642]
[1748867829156,26.0,153.91,153.87,18.57510233]
[1748867829364,154.9131,153.92,153.88,18.57510233]
[1748867829365,148.9,153.92,153.88,18.57510233]
[1748867829658,18.57510233,153.92,153.87,18.57510233]
[1748867830033,18.57510233,153.91,153.87,18.57510233]
[1748867831535,150.4482,153.95,153.88,18.57510233]
[1748867831862,150.4482,153.95,153.91,18.57510233]
[1748867831863,148.9,153.95,153.91,18.57510233]
[1748867832036,167.47510233,153.95,153.91,18.57510233]
[1748867832235,18.57510233,153.95,153.9,18.57510233]
[1748867832635,6.1795,153.96,153.91,18.57510233]
[1748867832832,18.57510233,153.95,153.91,18.57510233]
[1748867833537,18.57510233,153.96,153.92,18.57510233]
[1748867835066,27.5439,153.99,153.92,18.57510233]
[1748867835247,1.5439,153.99,153.92,18.57510233]
[1748867835567,18.57510233,153.96,153.92,18.57510233]
[1748867836762,18.57510233,153.96,153.91,18.57510233]
[1748867838350,18.57510233,153.96,153.92,18.57510233]
[1748867839473,18.57510233,153.96,153.91,18.57510233]
[1748867841079,18.57510233,153.96,153.92,18.57510233]
[1748867841636,27.5439,153.99,153.92,25.07196681]
[1748867841861,18.57510233,153.97,153.93,18.57510233]
[1748867843458,27.5439,153.99,153.93,18.57510233]
[1748867843763,27.5439,153.99,153.9,37.22475119]
[1748867843764,18.57510233,153.95,153.9,37.22475119]
[1748867844145,18.57510233,153.95,153.91,18.57510233]
[1748867844346,18.57510233,153.95,153.9,43.72234887]
[1748867845373,18.57510233,153.93,153.89,18.57510233]
[1748867845545,18.57510233,153.92,153.88,18.57510233]
[1748867845740,18.57510233,153.91,153.87,18.57510233]
[1748867846279,6.1975,153.95,153.86,37.22475119]
[1748867846280,18.57510233,153.9,153.86,37.22475119]
[1748867846639,18.57510233,153.9,153.86,18.64964886]
[1748867846869,18.57510233,153.9,153.86,37.22475119]
[1748867847474,18.57510233,153.91,153.87,18.57510233]
[1748867848174,18.57510233,153.89,153.85,18.57510233]
[1748867848957,18.57510233,153.9,153.86,18.57510233]
[1748867850572,1.5549,153.93,153.87,18.57510233]
[1748867850773,20.13000233,153.93,153.88,18.57510233]
[1748867850981,18.57510233,153.92,153.88,18.57510233]
[1748867854389,6.1975,153.95,153.89,18.57510233]
[1748867854679,18.57510233,153.93,153.89,18.57510233]
[1748867857471,6.1975,153.95,153.89,18.57510233]
[1748867857669,18.57510233,153.93,153.88,6.49852126]
[1748867857868,6.1975,153.95,153.89,18.57510233]
[1748867858054,18.57510233,153.93,153.89,18.57510233]
[1748867858255,18.57510233,153.94,153.89,25.07323645]
[1748867858567,6.1975,153.95,153.9,18.57510233]
[1748867858568,18.57510233,153.95,153.9,18.57510233]
[1748867858946,18.57510233,153.94,153.9,18.57510233]
[1748867859772,167.47510233,153.96,153.91,18.57510233]
[1748867860072,167.47510233,153.96,153.92,18.57510233]
[1748867860289,148.9,153.96,153.92,18.57510233]
[1748867860485,167.47510233,153.96,153.92,18.57510233]
[1748867863068,148.9,153.96,153.92,18.57510233]
[1748867863482,167.47510233,153.96,153.92,18.57510233]
[1748867863680,1.6175,153.97,153.93,18.57510233]
[1748867863965,18.57510233,153.97,153.93,18.57510233]
[1748867865076,148.9,154.0,153.96,18.57510233]
[1748867865285,17.69591532,154.03,153.97,18.57510233]
[1748867865485,18.57510233,154.01,153.97,18.57510233]
[1748867866093,17.69591532,154.03,153.97,18.57510233]
[1748867866275,25.06850233,154.03,153.98,18.57510233]
[1748867866479,18.57510233,154.03,153.98,18.57510233]
[1748867866680,176.4657,154.05,153.98,18.57510233]
[1748867866883,18.57510233,154.03,153.99,18.57510233]
[1748867867480,18.57510233,154.04,153.99,18.57510233]
[1748867867675,176.4657,154.05,153.98,18.64964886]
[1748867867676,18.57510233,154.03,153.98,18.64964886]
[1748867867985,18.57510233,154.03,153.98,18.57510233]
[1748867868307,18.57510233,154.03,153.99,18.57510233]
[1748867868677,176.4657,154.05,153.99,18.57510233]
[1748867868876,18.57510233,154.03,153.99,18.57510233]
[1748867869185,18.57510233,154.04,154.0,18.57510233]
[1748867870205,1.5657,154.05,154.0,18.57510233]
[1748867870401,6.4934,154.07,153.98,6.49434991]
[1748867870606,18.57510233,154.06,154.02,18.57510233]
[1748867870805,18.57510233,154.07,154.02,18.57510233]
[1748867871006,18.57510233,154.07,154.03,18.57510233]
[1748867871188,44.57510233,154.08,154.03,18.57510233]
[1748867871535,18.57510233,154.07,154.03,18.57510233]
[1748867871701,26.0,154.08,154.02,18.57510233]
[1748867871897,18.57510233,154.07,154.02,18.57510233]
[1748867872283,18.57510233,154.07,154.03,18.57510233]
[1748867872704,18.57510233,154.07,154.02,25.06772608]
[1748867873475,18.57510233,154.07,154.02,18.64964886]
[1748867873897,18.57510233,154.06,154.02,37.22475119]
[1748867874409,18.57510233,154.07,154.02,37.22475119]
[1748867874783,18.57510233,154.07,154.0,18.64964886]
[1748867874983,18.57510233,154.07,154.02,18.57510233]
[1748867875804,18.57510233,154.07,154.03,18.57510233]
[1748867876813,18.57510233,154.07,154.03,25.06711125]
[1748867877295,161.78136067,154.09,154.03,25.06711125]
[1748867877498,18.57510233,154.08,154.04,18.57510233]
[1748867878013,0.8936255,154.1,154.07,18.57510233]
[1748867878607,0.8936255,154.1,154.06,18.57510233]
[1748867880303,0.8936255,154.1,154.07,18.57510233]
[1748867880818,18.57510233,154.09,154.05,18.57510233]
[1748867881719,19.46872783,154.1,154.06,18.57510233]
[1748867881886,0.8936255,154.1,154.06,18.57510233]
[1748867882091,19.46872783,154.1,154.06,18.57510233]
[1748867882316,0.8936255,154.1,154.06,18.57510233]
[1748867882504,0.8936255,154.1,154.04,18.64964886]
[1748867882505,0.8936255,154.1,154.08,18.57510233]
[1748867882893,0.8936255,154.1,154.09,18.57510233]
[1748867883099,0.8936255,154.1,154.09,37.22475119]
[1748867883608,1.5576,154.19,154.1,18.64964886]
[1748867883808,20.13270233,154.19,154.15,18.57510233]
[1748867884193,24.96020233,154.2,154.16,18.57510233]
[1748867884596,18.57510233,154.19,154.15,18.57510233]
[1748867884799,18.57510233,154.19,154.13,18.64964886]
[1748867885092,18.57510233,154.18,154.14,18.57510233]
[1748867885528,18.57510233,154.17,154.13,18.57510233]
[1748867885699,18.57510233,154.15,154.11,37.22475119]
[1748867886124,18.57510233,154.15,154.11,18.57510233]
[1748867886292,1.5787,154.17,154.09,18.57510233]
[1748867886293,18.57510233,154.14,154.09,18.57510233]
[1748867886612,18.57510233,154.12,154.08,18.57510233]
[1748867887007,18.57510233,154.13,154.08,18.57510233]
[1748867887209,18.57510233,154.12,154.08,18.57510233]
[1748867887597,18.57510233,154.13,154.09,18.57510233]
[1748867888005,26.0,154.16,154.09,18.57510233]
[1748867888200,18.57510233,154.13,154.09,18.57510233]
[1748867888722,18.57510233,154.13,154.09,18.64964886]
[1748867888901,26.0,154.16,154.09,37.22475119]
[1748867889102,18.57510233,154.13,154.09,37.22475119]
[1748867889512,18.57510233,154.14,154.09,43.71440771]
[1748867889707,18.57510233,154.14,154.1,18.57510233]
[1748867890321,26.0,154.16,154.11,18.57510233]
[1748867890322,18.57510233,154.15,154.11,18.57510233]
[1748867891100,18.57510233,154.16,154.11,25.06393274]
[1748867891301,18.57510233,154.15,154.11,18.57510233]
[1748867892411,18.57510233,154.14,154.1,18.64964886]
[1748867893121,18.57510233,154.14,154.1,37.22475119]
[1748867893825,18.57510233,154.14,154.1,18.64964886]
[1748867894122,1.5787,154.17,154.1,37.22475119]
[1748867894321,18.57510233,154.15,154.11,18.57510233]
[1748867894628,18.57510233,154.14,154.09,32.48964414]
[1748867894805,18.57510233,154.12,154.08,18.57510233]
[1748867895305,18.57510233,154.12,154.07,63.22475119]
[1748867895502,18.57510233,154.12,154.05,7.8283]
[1748867895503,18.57510233,154.09,154.05,18.57510233]
[1748867895703,18.57510233,154.09,154.05,44.57510233]
[1748867896322,6.0334,154.13,154.06,18.57510233]
[1748867896323,18.57510233,154.1,154.06,18.57510233]
[1748867897224,6.0334,154.13,154.06,18.57510233]
[1748867897529,18.57510233,154.1,154.06,18.57510233]
[1748867897916,6.0334,154.13,154.07,37.22475119]
[1748867898119,24.60850233,154.13,154.08,18.57510233]
[1748867898432,18.57510233,154.13,154.08,18.57510233]
[1748867898810,148.9,154.15,154.1,18.57510233]
[1748867899017,18.57510233,154.16,154.11,18.57510233]
[1748867899410,7.6889,154.17,154.12,18.57510233]
[1748867899623,26.26400233,154.17,154.12,18.57510233]
[1748867900025,18.57510233,154.16,154.12,18.57510233]
[1748867900709,7.6889,154.17,154.12,18.57510233]
[1748867901110,18.57510233,154.16,154.12,18.57510233]
[1748867901558,18.57510233,154.16,154.11,25.06371171]
[1748867902040,18.57510233,154.16,154.12,37.22475119]
[1748867902432,18.57510233,154.16,154.12,18.57510233]
[1748867902645,18.57510233,154.15,154.11,18.57510233]
[1748867902839,7.6889,154.17,154.08,17.85063731]
[1748867902840,18.57510233,154.12,154.08,25.13967418]
[1748867903140,18.57510233,154.11,154.08,18.64964886]
[1748867903320,18.57510233,154.1,154.06,6.49087513]
[1748867903640,18.57510233,154.09,154.03,6.49224177]
[1748867903815,18.57510233,154.08,154.04,18.64964886]
[1748867904123,18.57510233,154.07,154.02,25.06764259]
[1748867904323,18.57510233,154.06,154.02,25.06764259]
[1748867904720,18.57510233,154.07,154.02,25.06764259]
[1748867905028,18.57510233,154.07,154.03,18.57510233]
[1748867905234,18.57510233,154.07,154.02,25.06764259]
[1748867906138,18.57510233,154.06,154.02,25.06764259]
[1748867906337,18.57510233,154.06,154.01,37.22475119]
[1748867906641,6.6559,154.1,154.01,37.22475119]
[1748867906642,18.57510233,154.05,154.01,37.22475119]
[1748867907230,18.57510233,154.05,154.01,43.71772515]
[1748867907840,18.57510233,154.06,154.01,43.71772515]
[1748867908329,18.57510233,154.06,154.02,18.57510233]
[1748867908524,18.57510233,154.06,154.01,43.71772515]
[1748867908723,18.57510233,154.07,154.03,37.22475119]
[1748867908926,18.57510233,154.07,154.03,43.71692703]
[1748867910819,6.6559,154.1,154.03,43.71692703]
[1748867911120,18.57510233,154.07,154.03,43.71692703]
[1748867911635,18.57510233,154.08,154.04,18.57510233]
[1748867912014,18.57510233,154.07,154.03,43.71692703]
[1748867913545,6.6559,154.1,154.04,18.57510233]
[1748867913546,18.57510233,154.08,154.04,18.57510233]
[1748867913926,148.9,154.11,154.05,18.64964886]
[1748867914125,18.57510233,154.09,154.05,18.64964886]
[1748867914329,18.57510233,154.08,154.05,18.64964886]
[1748867915653,18.57510233,154.08,154.02,6.49266329]
[1748867915831,18.57510233,154.05,154.0,6.49350649]
[1748867916026,18.57510233,154.05,154.01,18.64964886]
[1748867916430,18.57510233,154.05,154.01,43.71750445]
[1748867917324,18.57510233,154.06,154.02,18.57510233]
[1748867918724,18.57510233,154.06,154.02,25.06767943]
[1748867920144,18.57510233,154.06,154.02,18.57510233]
[1748867921165,18.57510233,154.06,154.02,25.0677113]
[1748867921572,18.57510233,154.06,154.03,18.64964886]
[1748867921764,148.9,154.11,154.03,37.22475119]
[1748867922134,18.57510233,154.1,154.06,18.57510233]
[1748867922347,18.57510233,154.09,154.05,18.57510233]
[1748867922658,18.57510233,154.09,154.04,18.57510233]
[1748867923052,18.57510233,154.09,154.05,18.64964886]
[1748867925176,18.57510233,154.07,153.96,4.98432651]
[1748867925376,18.57510233,154.07,154.03,18.64964886]
[1748867925677,26.0,154.11,154.03,37.22475119]
[1748867925853,18.57510233,154.05,154.01,37.22475119]
[1748867926245,18.57510233,154.05,154.01,18.64964886]
[1748867926586,18.57510233,154.05,154.01,37.22475119]
[1748867926872,18.57510233,154.05,154.01,43.71760735]
[1748867928475,18.57510233,154.05,154.01,37.22475119]
[1748867928989,18.57510233,154.05,154.01,43.71776307]
[1748867929358,18.57510233,154.06,154.01,43.71776307]
[1748867931786,18.57510233,154.06,154.02,18.57510233]
[1748867931970,1.636,154.08,154.02,18.57510233]
[1748867932166,174.9,154.1,154.03,18.57510233]
[1748867932368,44.57510233,154.1,154.05,18.57510233]
[1748867932587,18.57510233,154.08,154.04,18.57510233]
[1748867932962,18.57510233,154.08,154.03,18.57510233]
[1748867933173,18.57510233,154.08,154.03,6.49224177]
[1748867933489,26.0,154.1,154.04,18.57510233]
[1748867933665,18.57510233,154.09,154.04,18.64964886]
[1748867933866,18.57510233,154.08,154.04,37.22475119]
[1748867934679,18.57510233,154.09,154.05,18.57510233]
[1748867935691,26.0,154.1,154.05,18.57510233]
[1748867936191,18.57510233,154.09,154.05,18.57510233]
[1748867936997,18.57510233,154.11,154.07,6.49055624]
[1748867937676,18.57510233,154.11,154.06,25.06592192]
[1748867937873,18.57510233,154.09,154.05,25.06633544]
[1748867938098,18.57510233,154.09,154.05,18.64964886]
[1748867938400,18.57510233,154.09,154.04,6.49166341]
[1748867938586,18.57510233,154.09,154.05,18.64964886]
[1748867940103,18.57510233,154.09,154.05,6.49129032]
[1748867940295,18.57510233,154.09,154.04,18.57510233]
[1748867940502,18.57510233,154.08,154.04,18.57510233]
[1748867941085,18.57510233,154.08,154.0,18.64964886]
[1748867941086,18.57510233,154.05,154.0,18.64964886]
[1748867941282,18.57510233,154.05,154.01,18.57510233]
[1748867941479,18.57510233,154.07,154.03,18.57510233]
[1748867941717,18.57510233,154.08,154.04,18.57510233]
[1748867942019,18.57510233,154.09,154.04,18.57510233]
[1748867942776,18.57510233,154.08,154.03,18.57510233]
[1748867944287,18.57510233,154.08,154.03,25.06718573]
[1748867944979,18.57510233,154.07,154.03,18.57510233]
[1748867945181,18.57510233,154.07,154.02,6.4924775]
[1748867945384,18.57510233,154.07,154.03,18.57510233]
[1748867947292,18.57510233,154.07,154.03,25.06731715]
[1748867947496,18.57510233,154.07,154.03,6.49221482]
[1748867947803,18.57510233,154.07,154.03,25.06731715]
[1748867948385,26.0,154.1,154.03,25.06731715]
[1748867948598,18.57510233,154.07,154.03,25.06731715]
[1748867948779,26.0,154.1,154.03,25.06731715]
[1748867948983,26.0,154.1,154.04,18.57510233]
[1748867948984,18.57510233,154.08,154.04,18.57510233]
[1748867949706,18.57510233,154.08,154.03,25.06731715]
[1748867950887,18.57510233,154.08,154.04,18.64964886]
[1748867952289,18.57510233,154.08,154.04,37.22475119]
[1748867953194,18.57510233,154.08,154.04,18.64964886]